Cogmind - Beta 9.4 @@@ ROGUE MODE // 2020.02.16 @ 20:55:32 Player: alice_fexa Result: Destroyed by Executioner with Helical Railgun Performance ------------- Evolutions (5) 2500 Regions Visited (19) 3800 Robots Destroyed (72) 360 Value Destroyed (1814) 1814 Prototype IDs (67) 1340 Alien Tech Used (0) 0 Bonus (2436) 2436 TOTAL SCORE: 12250 Bonus ------- Follower Combat Kills 750 Aligned with FarCom 300 Met Data Miner 300 Met Warlord at Base 500 MAIN.C Attacked Warlord 500 Warlord Defense Kill 140 Friendly Fire -54 Cogmind --------- Core Integrity 0/1000 Matter 300/300 Energy 98/100 System Corruption 2% Temperature Cool (0) Movement Core (50) Location -5/Warlord Parts ------- > --- POWER (2) -------- (None) > --- PROPULSION (4) --- (None) > --- UTILITY (9) ------ (None) > --- WEAPON (2) ------- (None) > --- INVENTORY (4) ---- Micro Fission Core Biomechanical Wings Advanced Weight Redist. System Precision Rocket Launcher Peak State ------------ > --- POWER ------------ Light Neutrino Core Micro Fission Core > --- PROPULSION ------- Biomechanical Wings Biomechanical Wings Biomechanical Wings Cooled Impulse Thruster > --- UTILITY ---------- Medium Storage Unit Experimental Signal Interpreter Modified TNC Experimental Focal Shield Hacking Suite Hacking Suite Experimental Hacking Suite System Shield Improved System Shield > --- WEAPON ----------- Plasma Sword Kinetic Spear > --- INVENTORY -------- Micro Fission Core Biomechanical Wings Advanced Weight Redist. System Long-range Sensor Array Hacking Suite Precision Rocket Launcher Deploy-a-Sentry Deploy-a-Sentry [Rating: 102] Favorites ----------- Power Light Deuterium Engine Engine Light Deuterium Engine Power Core Light Fission Core Propulsion Improved VTOL Module Treads Improved Treads Wheel Compact Wheel Hover Unit Aerolev Unit Flight Unit Improved VTOL Module Utility System Shield Device Advanced Sensor Array Storage Large Storage Unit Processor Advanced Signal Interpreter Hackware System Shield Protection Hardened Medium Armor Plating Weapon Katana Energy Gun Heavy EM Shotgun Ballistic Gun Light Assault Rifle Launcher Mini Grenade Launcher Special Weapon Remote Datajack Slashing Weapon Katana Piercing Weapon Kinetic Spear Build | -11 -10 -10 -10 -9 -8 -7 -7 -7 -7 -6 -6 -6 -6 -6 -5 -5 -5 -5 -5 ------- Run | Scr Mat Min Exi Min Mat Fac Low Low Zio Pro Fac Low Low Dat Pro Fac Upp Upp War Slots Evolved 10 | . . . . . 4 2 . . . . 2 . . . . 2 . . . Power 1 | . . . . . . 1 . . . . . . . . . . . . . Propulsion 2 | . . . . . 1 1 . . . . . . . . . . . . . Utility 7 | . . . . . 3 . . . . . 2 . . . . 2 . . . Weapon . | . . . . . . . . . . . . . . . . . . . . Parts Attached 127 | 6 10 5 1 2 27 31 1 2 2 1 9 . . . 1 18 1 . 10 Power 21 | 1 . 2 . . 4 8 . 1 . 1 1 . . . . 3 . . . Engine 13 | 1 . 2 . . 4 6 . . . . . . . . . . . . . Core 8 | . . . . . . 2 . 1 . 1 1 . . . . 3 . . . Reactor . | . . . . . . . . . . . . . . . . . . . . Propulsion 29 | 2 2 . . 1 10 10 . . . . 2 . . . . 1 . . 1 Treads 9 | 2 2 . . 1 4 . . . . . . . . . . . . . . Leg . | . . . . . . . . . . . . . . . . . . . . Wheel 5 | . . . . . 5 . . . . . . . . . . . . . . Hover 4 | . . . . . . 4 . . . . . . . . . . . . . Flight 11 | . . . . . 1 6 . . . . 2 . . . . 1 . . 1 Utility 47 | 1 5 . 1 . 6 8 . 1 2 . 5 . . . 1 7 1 . 9 Device 19 | . 2 . . . 2 2 . . 1 . 2 . . . 1 3 . . 6 Storage 7 | 1 3 . 1 . . 2 . . . . . . . . . . . . . Processor 6 | . . . . . . 1 . . 1 . 1 . . . . 2 . . 1 Hackware 10 | . . . . . . 3 . 1 . . 2 . . . . 2 1 . 1 Protection 5 | . . . . . 4 . . . . . . . . . . . . . 1 Artifact . | . . . . . . . . . . . . . . . . . . . . Weapon 30 | 2 3 3 . 1 7 5 1 . . . 1 . . . . 7 . . . Energy Gun 9 | 1 1 1 . 1 5 . . . . . . . . . . . . . . Energy Cannon . | . . . . . . . . . . . . . . . . . . . . Ballistic Gun 6 | 1 2 2 . . 1 . . . . . . . . . . . . . . Ballistic Cannon . | . . . . . . . . . . . . . . . . . . . . Launcher 3 | . . . . . . . 1 . . . . . . . . 2 . . . Special Weapon 1 | . . . . . . 1 . . . . . . . . . . . . . Impact Weapon . | . . . . . . . . . . . . . . . . . . . . Slashing Weapon 7 | . . . . . 1 4 . . . . 1 . . . . 1 . . . Piercing Weapon 4 | . . . . . . . . . . . . . . . . 4 . . . Special Melee Weapon . | . . . . . . . . . . . . . . . . . . . . Unidentified Prototypes 14 | . . . . . 2 2 . . . . 3 . . . . 3 . . 4 Parts Lost 15 | . . . . . 6 . . 1 . . . . 1 . . 2 . . 5 Power . | . . . . . . . . . . . . . . . . . . . . Propulsion 2 | . . . . . 2 . . . . . . . . . . . . . . Utility 9 | . . . . . 1 . . 1 . . . . 1 . . 1 . . 5 Weapon 4 | . . . . . 3 . . . . . . . . . . 1 . . . Highest Loss Streak 3 | . . . . . 3 . . 1 . . . . 1 . . 2 . . 2 Average Slot Usage (%) 98 | . 98 100 100 99 98 97 100 99 100 100 96 100 99 93 94 99 100 100 92 Engine 7 | . 14 14 14 14 9 10 7 7 7 7 4 . . . . . . . . Core 4 | . . . . . . 4 7 7 7 7 7 13 13 13 13 10 11 11 10 Treads 10 | . 28 28 28 28 16 . . . . . . . . . . . . . . Wheel 1 | . . . . . 8 . . . . . . . . . . . . . . Flight 13 | . . . . . . 25 30 30 30 30 26 26 26 26 26 23 23 23 21 Device 9 | . 9 14 7 . 18 9 7 7 7 7 6 6 5 . 1 6 5 5 4 Storage 11 | . 17 14 20 28 18 7 7 7 7 7 6 6 6 6 6 5 5 5 4 Processor 3 | . . . . . . 1 7 7 7 7 6 6 6 6 6 11 11 11 10 Hackware 12 | . . . . . . 17 15 14 15 15 22 26 26 26 26 27 29 29 24 Protection 1 | . . . . . 8 . . . . . . . . . . . . . . Energy Gun 5 | . 14 14 14 13 8 . . . . . . . . . . . . . . Ballistic Gun 4 | . 14 14 14 14 2 . . . . . . . . . . . . . . Launcher 1 | . . . . . . . 3 7 7 7 6 6 6 6 6 . . . . Slashing Weapon 5 | . . . . . 6 14 11 7 7 7 6 6 6 6 6 5 5 5 4 Naked Turns 34 | . . . . . . . . . . . . . . . . . . . 34 Heaviest Build 54 | 12 25 25 37 39 54 54 25 23 23 25 26 26 26 25 26 28 28 28 30 Greatest Support 56 | 40 46 46 46 46 56 44 26 26 26 26 28 28 28 28 28 30 30 30 35 Greatest Overweight (x) 5 | . . . . . 5 4 . . . . 1 . . . . . . . 3 Average Overweight (x) . | . . . . . 3 . . . . . . . . . . . . . . Largest Inventory Capacity 16 | 6 12 10 16 16 16 16 8 8 8 8 8 8 8 8 8 8 8 8 8 Average Capacity 10 | 5 9 10 12 16 16 8 8 8 8 8 8 8 8 8 8 8 8 8 7 Most Carried 16 | 4 10 10 15 16 16 16 8 8 8 8 8 8 8 8 8 8 8 8 8 Average Carried 10 | 2 8 9 12 15 15 8 8 7 7 7 7 8 8 8 8 7 8 8 7 Final Capacity 16 | 6 10 10 16 16 16 8 8 8 8 8 8 8 8 8 8 8 8 8 4 Final Carried 16 | 4 10 10 15 16 16 8 8 8 8 8 8 8 8 8 8 8 8 8 4 Class Distribution -------------------- 40% | Mutant 30% | Hacker-Sprinter 21% | Hacker-Scout 5% | Scavenger-Mutant Dominant Class ---------------- Mutant | -10/Materials Mutant | -10/Mines Mutant | -10/Exiles Mutant | -9/Mines Mutant | -8/Materials Hacker-Sprinter | -7/Factory Hacker-Sprinter | -7/Lower Caves Hacker-Sprinter | -7/Lower Caves Hacker-Sprinter | -7/Zion Hacker-Sprinter | -6/Proximity Caves Hacker-Sprinter | -6/Factory Hacker-Sprinter | -6/Lower Caves Hacker-Sprinter | -6/Lower Caves Hacker-Sprinter | -6/Data Miner Hacker-Sprinter | -5/Proximity Caves Hacker-Scout | -5/Factory Hacker-Scout | -5/Upper Caves Hacker-Scout | -5/Upper Caves Hacker-Scout | -5/Warlord Resources | -11 -10 -10 -10 -9 -8 -7 -7 -7 -7 -6 -6 -6 -6 -6 -5 -5 -5 -5 -5 ----------- Run | Scr Mat Min Exi Min Mat Fac Low Low Zio Pro Fac Low Low Dat Pro Fac Upp Upp War Matter Collected 1753 | 260 97 102 . 42 329 315 10 44 11 60 70 20 . . 115 170 20 . 88 Remotely . | . . . . . . . . . . . . . . . . . . . . Salvage Created 2769 | . 436 85 . 13 1051 310 66 18 . 25 314 . . . 76 315 . . 60 Parts 146 | . 26 9 . 3 49 22 . 5 . 1 13 . . . 1 12 . . 5 Haulers Intercepted 10 | . 2 . . . 2 1 . . . . 3 . . . . 2 . . . Recyclers Shooed 3 | . . . . . 3 . . . . . . . . . . . . . . Parts Field Recycled . | . . . . . . . . . . . . . . . . . . . . Retrieved Matter . | . . . . . . . . . . . . . . . . . . . . Parts Self-Destructed 115 | . . . . . . . . 22 . 3 . . . . 4 . . . 86 Prevented 7 | . . . . . . . . . . . . . . . . . . . 7 Kills | -11 -10 -10 -10 -9 -8 -7 -7 -7 -7 -6 -6 -6 -6 -6 -5 -5 -5 -5 -5 ------- Run | Scr Mat Min Exi Min Mat Fac Low Low Zio Pro Fac Low Low Dat Pro Fac Upp Upp War Combat Hostiles Destroyed 40 | . 8 6 . . 13 1 . 4 . 3 . . . . 3 1 . . 1 Melee 4 | . . . . . . 1 . . . . . . . . 1 1 . . 1 Guns 27 | . 8 6 . . 13 . . . . . . . . . . . . . . AOE 9 | . . . . . . . . 4 . 3 . . . . 2 . . . . Classes Destroyed 13 | . 5 . . 1 5 2 . . . . . . . . . . . . . Worker 3 | . . . . . 2 1 . . . . . . . . . . . . . Builder 1 | . . . . . 1 . . . . . . . . . . . . . . Tunneler 2 | . . . . 1 . 1 . . . . . . . . . . . . . Hauler 10 | . 2 . . . 2 1 . . . . 3 . . . . 2 . . . Recycler 3 | . . . . . 2 1 . . . . . . . . . . . . . Mechanic 1 | . . . . . . 1 . . . . . . . . . . . . . Operator 4 | . 1 . . . . 1 . . . . 1 . . . . 1 . . . Watcher 8 | . 2 . . . 2 2 . . . . 1 . . . . 1 . . . Swarmer 17 | . 3 6 . . . . . 4 . 3 . . . . 1 . . . . Grunt 14 | . 5 . . . 7 . . . . . . . . . 2 . . . . Duelist 2 | . . . . . 2 . . . . . . . . . . . . . . Sentry 4 | . . . . . 4 . . . . . . . . . . . . . . Programmer 3 | . . . . . . 1 . . . . . . . . . 1 . . 1 Best Kill Streak 5 | . 5 3 . 1 5 2 . 4 . 3 2 . . . 2 1 . . 1 Combat Bots Only 5 | . 5 3 . . 5 1 . 4 . 3 . . . . 2 1 . . 1 Max Kills in Single Turn 2 | . 2 2 . 1 1 1 . 2 . 1 1 . . . 1 1 . . 1 Gunslinging 1 | . 1 1 . . . . . . . . . . . . . . . . . Exploded 2 | . . . . . . . . 2 . 1 . . . . 1 . . . . Melee 1 | . . . . . . 1 . . . . . . . . 1 1 . . 1 Uniques/NPCs Destroyed . | . . . . . . . . . . . . . . . . . . . . Combat | -11 -10 -10 -10 -9 -8 -7 -7 -7 -7 -6 -6 -6 -6 -6 -5 -5 -5 -5 -5 -------- Run | Scr Mat Min Exi Min Mat Fac Low Low Zio Pro Fac Low Low Dat Pro Fac Upp Upp War Damage Taken 3891 | . 265 168 . 221 1388 132 4 95 . 16 5 11 77 . 88 135 . . 1286 Core 1426 | . 79 62 . . 174 26 . 15 . 16 . . . . 43 23 . . 988 Absorbed by Shields . | . . . . . . . . . . . . . . . . . . . . Core Remaining (%) 79 | 100 . . . 43 68 . . . . 91 . . . . 94 . . . . Volleys Fired 167 | . 47 11 . 3 86 1 1 3 . 3 . . 3 . 9 . . . . Largest 2 | . 2 2 . 2 2 1 1 1 . 1 . . 1 . 1 . . . . Hottest 96 | . 60 60 . 65 96 30 30 30 . 30 . . 30 . 30 . . . . Shots Fired 282 | . 94 22 . 6 140 1 1 3 . 3 . . 3 . 9 . . . . Gun 262 | . 94 22 . 6 140 . . . . . . . . . . . . . . Cannon . | . . . . . . . . . . . . . . . . . . . . Launcher 19 | . . . . . . . 1 3 . 3 . . 3 . 9 . . . . Special 1 | . . . . . . 1 . . . . . . . . . . . . . Kinetic 114 | . 47 11 . 3 53 . . . . . . . . . . . . . . Thermal 35 | . . 11 . . 24 . . . . . . . . . . . . . . Explosive 19 | . . . . . . . 1 3 . 3 . . 3 . 9 . . . . Electromagnetic 113 | . 47 . . 3 63 . . . . . . . . . . . . . . Robot Hit Streak 16 | . 16 3 . 4 16 4 . 1 . 2 . . . . . . . . . Robot Miss Streak 4 | . 3 2 . 3 4 . 1 2 . . . . 1 . . . . . . Penetration Max . | . . . . . . . . . . . . . . . . . . . . Secondary Targets 8 | . 2 1 . . 5 . . . . . . . . . . . . . . Max Gunslinging Chain 1 | . 1 1 . . 1 . . . . . . . . . . . . . . Shots Hit Robots 233 | . 62 9 . 2 107 19 2 1 . 1 14 . . . 2 11 . . 3 Core Hits 135 | . 22 7 . 2 51 8 1 10 . 4 6 . 1 . 15 5 . . 3 Critical Hits 4 | . 1 . . . 2 . . . . . . . . . . . . . 1 Critical Kills 2 | . . . . . 1 . . . . . . . . . . . . . 1 Critical Parts Destroyed 2 | . 1 . . . 1 . . . . . . . . . . . . . . Melee Attacks 167 | . . . . . 11 31 16 . . 6 39 2 4 . 3 37 4 2 12 Impact . | . . . . . . . . . . . . . . . . . . . . Slashing 153 | . . . . . 11 31 16 . . 6 39 2 4 . 3 31 3 1 6 Piercing 14 | . . . . . . . . . . . . . . . . 6 1 1 6 Sneak Attacks 17 | . . . . . 1 8 . . . . 3 . . . . 5 . . . Combat Hostiles . | . . . . . . . . . . . . . . . . . . . . Follow-up Attacks 2 | . . . . . . 1 . . . . . . . . . 1 . . . Damage Inflicted 6943 | . 715 84 . 27 1611 1186 164 338 . 221 845 . 52 . 627 958 . . 115 Guns 2353 | . 715 84 . 27 1527 . . . . . . . . . . . . . . Cannons . | . . . . . . . . . . . . . . . . . . . . Explosions 1153 | . . . . . . . . 338 . 221 . . 52 . 542 . . . . Melee 3432 | . . . . . 84 1186 164 . . . 845 . . . 85 958 . . 110 Ramming 5 | . . . . . . . . . . . . . . . . . . . 5 Kinetic 501 | . 168 31 . . 302 . . . . . . . . . . . . . . Thermal 236 | . . 53 . . 183 . . . . . . . . . . . . . . Explosive 1153 | . . . . . . . . 338 . 221 . . 52 . 542 . . . . Electromagnetic 1616 | . 547 . . 27 1042 . . . . . . . . . . . . . . Impact . | . . . . . . . . . . . . . . . . . . . . Slashing 2928 | . . . . . 84 1186 164 . . . 845 . . . 85 564 . . . Piercing 504 | . . . . . . . . . . . . . . . . 394 . . 110 Highest Corruption 2 | . . . . . . . . . . . . . . . 1 . . . 2 Average Corruption 1 | . . . . . . . . . . . . . . . 1 . . . 1 Corruption Purged . | . . . . . . . . . . . . . . . . . . . . Effects 3 | . . . . . . . . . . . . . . . . . . . 3 Message Errors 1 | . . . . . . . . . . . . . . . . . . . 1 Heat Flow Errors 1 | . . . . . . . . . . . . . . . . . . . 1 Energy Discharges 1 | . . . . . . . . . . . . . . . . . . . 1 Overload Shots . | . . . . . . . . . . . . . . . . . . . . Overflow Damage 638 | . . . . . . 351 77 5 . 4 72 . . . 6 123 . . . Projectiles . | . . . . . . . . . . . . . . . . . . . . Explosions 15 | . . . . . . . . 5 . 4 . . . . 6 . . . . Melee 623 | . . . . . . 351 77 . . . 72 . . . . 123 . . . Knockbacks . | . . . . . . . . . . . . . . . . . . . . Impact . | . . . . . . . . . . . . . . . . . . . . Kinetic . | . . . . . . . . . . . . . . . . . . . . Secondary . | . . . . . . . . . . . . . . . . . . . . Self-Inflicted Damage 7 | . . . . . . . 5 . . . . . . . . . . . 2 Shots 1 | . . . . . . . 1 . . . . . . . . . . . . Rammed 3 | . . . . . . . . . . . . . . . . . . . 3 Targets Rammed 3 | . . . . . . . . . . . . . . . . . . . 3 Kicked . | . . . . . . . . . . . . . . . . . . . . Crushed . | . . . . . . . . . . . . . . . . . . . . Highest Temperature 183 | . 76 . . 28 7 14 3 9 . 18 . . 4 . . . . . 183 Average Temperature 10 | . 20 . . 14 7 2 2 7 . 5 . . 4 . . . . . 103 Received Heat Transfer 1008 | . 138 . . . 657 33 . 9 . . . 6 33 . 9 . . . 123 Siege Activations . | . . . . . . . . . . . . . . . . . . . . Robots Corrupted 2 | . . . . . 2 . . . . . . . . . . . . . . Combat Hostiles . | . . . . . . . . . . . . . . . . . . . . Parts Fried 15 | . 4 . . . 11 . . . . . . . . . . . . . . Impact Corruptions . | . . . . . . . . . . . . . . . . . . . . Robots Melted . | . . . . . . . . . . . . . . . . . . . . Combat Hostiles . | . . . . . . . . . . . . . . . . . . . . Parts Melted 2 | . . 1 . . 1 . . . . . . . . . . . . . . Heat Transferred 549 | . . 125 . . 424 . . . . . . . . . . . . . . Parts Sabotaged 14 | . . . . . . . . . . . . . . . . . . . 14 Parts Stolen . | . . . . . . . . . . . . . . . . . . . . Parts Stripped . | . . . . . . . . . . . . . . . . . . . . Power Chain Reactions . | . . . . . . . . . . . . . . . . . . . . Missiles Intercepted . | . . . . . . . . . . . . . . . . . . . . Alert | -11 -10 -10 -10 -9 -8 -7 -7 -7 -7 -6 -6 -6 -6 -6 -5 -5 -5 -5 -5 ------- Run | Scr Mat Min Exi Min Mat Fac Low Low Zio Pro Fac Low Low Dat Pro Fac Upp Upp War Peak Influence 639 | . 179 140 . 5 160 639 . . . . 120 . . . . 172 . . . Average Influence 77 | . 83 44 . 2 34 235 . . . . 59 . . . . 56 . . . Maximum Alert Level 2 | . . . . . . 2 . . . . . . . . . . . . . Low Security (%) 93 | 100 100 100 . 100 100 58 . . . . 100 . . . . 100 . . . Level 1 . | . . . . . . 1 . . . . . . . . . . . . . Level 2 6 | . . . . . . 40 . . . . . . . . . . . . . Level 3 . | . . . . . . . . . . . . . . . . . . . . Level 4 . | . . . . . . . . . . . . . . . . . . . . Level 5 . | . . . . . . . . . . . . . . . . . . . . High Security . | . . . . . . . . . . . . . . . . . . . . Max Security . | . . . . . . . . . . . . . . . . . . . . Squads Dispatched 17 | . 3 . . . 1 5 . . . . 2 . . . . 6 . . . Investigation 5 | . 1 . . . 1 2 . . . . . . . . . 1 . . . Extermination 5 | . . . . . . 2 . . . . 1 . . . . 2 . . . Reinforcement 6 | . 2 . . . . . . . . . 1 . . . . 3 . . . Assault 1 | . . . . . . 1 . . . . . . . . . . . . . Garrison . | . . . . . . . . . . . . . . . . . . . . Intercept . | . . . . . . . . . . . . . . . . . . . . Construction Impeded . | . . . . . . . . . . . . . . . . . . . . Haulers Reinforced 3 | . . . . . . . . . . . 1 . . . . 2 . . . Stealth | -11 -10 -10 -10 -9 -8 -7 -7 -7 -7 -6 -6 -6 -6 -6 -5 -5 -5 -5 -5 --------- Run | Scr Mat Min Exi Min Mat Fac Low Low Zio Pro Fac Low Low Dat Pro Fac Upp Upp War Distress Signals 8 | . 2 . . . 2 1 . . . . . . . . . 1 . . 2 Communications Jammed . | . . . . . . . . . . . . . . . . . . . . Distress Signals . | . . . . . . . . . . . . . . . . . . . . Times Spotted 189 | . 21 6 . 10 30 31 6 11 . 4 5 1 13 . 10 12 . . 29 Peak Tracking Total 16 | . 6 3 . 14 6 4 4 9 . 3 2 1 12 . 5 4 . . 16 Tactical Retreats 31 | . 2 . . 1 6 8 2 . . 2 1 . 2 . . 4 . . 3 Traps | -11 -10 -10 -10 -9 -8 -7 -7 -7 -7 -6 -6 -6 -6 -6 -5 -5 -5 -5 -5 ------- Run | Scr Mat Min Exi Min Mat Fac Low Low Zio Pro Fac Low Low Dat Pro Fac Upp Upp War Traps Triggered 2 | . . . . . . 2 . . . . . . . . . . . . . Indirectly . | . . . . . . . . . . . . . . . . . . . . Trap Hack Attempts . | . . . . . . . . . . . . . . . . . . . . Triggered . | . . . . . . . . . . . . . . . . . . . . Disarmed . | . . . . . . . . . . . . . . . . . . . . Reprogrammed . | . . . . . . . . . . . . . . . . . . . . Reused 4 | . . . . . 4 . . . . . . . . . . . . . . Traps Reconfigurated 11 | . . . . . 11 . . . . . . . . . . . . . . Traps Extracted . | . . . . . . . . . . . . . . . . . . . . Installed . | . . . . . . . . . . . . . . . . . . . . Triggered 13 | . 1 . . . 4 . . . . . . 2 . . . . . . 6 Machines | -11 -10 -10 -10 -9 -8 -7 -7 -7 -7 -6 -6 -6 -6 -6 -5 -5 -5 -5 -5 ---------- Run | Scr Mat Min Exi Min Mat Fac Low Low Zio Pro Fac Low Low Dat Pro Fac Upp Upp War Machines Disabled 2 | . . . . . 1 1 . . . . . . . . . . . . . Max in Single Turn 1 | . . . . . 1 . . . . . . . . . . . . . . Garrison Access 1 | . . . . . . . . . . . 1 . . . . . . . . Machines Sabotaged . | . . . . . . . . . . . . . . . . . . . . Garrisons Compromised . | . . . . . . . . . . . . . . . . . . . . Overloaded Fab Kills . | . . . . . . . . . . . . . . . . . . . . Fab Network Shutdowns 1 | . . . . . . 1 . . . . . . . . . . . . . Hacking | -11 -10 -10 -10 -9 -8 -7 -7 -7 -7 -6 -6 -6 -6 -6 -5 -5 -5 -5 -5 --------- Run | Scr Mat Min Exi Min Mat Fac Low Low Zio Pro Fac Low Low Dat Pro Fac Upp Upp War Machines Accessed 53 | . 6 . 1 . 8 8 . 2 . . 12 . . 3 . 8 1 1 3 Terminals 34 | . 6 . . . 8 5 . . . . 11 . . . . 4 . . . Fabricators 4 | . . . . . . 2 . . . . . . . . . 2 . . . Repair Stations 2 | . . . . . . . . . . . . . . . . 2 . . . Recycling Units . | . . . . . . . . . . . . . . . . . . . . Scanalyzers 1 | . . . . . . 1 . . . . . . . . . . . . . Garrison Access 1 | . . . . . . . . . . . 1 . . . . . . . . Total Hacks 167 | . 15 . 1 . 23 26 . 5 . . 35 . . 20 . 36 1 1 4 Successful 113 | . 7 . 1 . 15 13 . 5 . . 16 . . 20 . 30 1 1 4 Failed 52 | . 8 . . . 7 13 . . . . 19 . . . . 5 . . . Catastrophic 11 | . 1 . . . 1 3 . . . . 6 . . . . . . . . Database Lockouts 3 | . . . . . 2 . . . . . . . . . . 1 . . . Manual 73 | . 10 . 1 . 16 11 . . . . 20 . . . . 14 . . 1 Terminals 102 | . 15 . . . 23 14 . . . . 34 . . . . 16 . . . Fabricators 24 | . . . . . . 9 . . . . . . . . . 15 . . . Repair Stations 5 | . . . . . . . . . . . . . . . . 5 . . . Recycling Units . | . . . . . . . . . . . . . . . . . . . . Scanalyzers 3 | . . . . . . 3 . . . . . . . . . . . . . Garrison Access 1 | . . . . . . . . . . . 1 . . . . . . . . Terminal Hacks 72 | . 3 . 1 . 12 2 . 5 . . 11 . . 20 . 12 1 1 4 Record 17 | . . . . . . . . 4 . . . . . 11 . . . . 2 Part Schematic 8 | . . . . . 1 . . . . . . . . 6 . 1 . . . Prototype ID Bank 13 | . 1 . . . 3 1 . . . . 3 . . 3 . 2 . . . Open Door 5 | . . . . . . . . 1 . . . . . . . . 1 1 2 Level Access Points 1 | . . . . . 1 . . . . . . . . . . . . . . Branch Access Points 2 | . . . . . . . . . . . 1 . . . . 1 . . . Fabricator Index 1 | . . . . . . . . . . . 1 . . . . . . . . Scanalyzer Index 1 | . . . . . . . . . . . 1 . . . . . . . . Unreport Threat 5 | . . . . . 2 . . . . . 1 . . . . 2 . . . Locate Traps 9 | . 2 . . . 5 1 . . . . . . . . . 1 . . . Recall Extermination 3 | . . . . . . . . . . . 1 . . . . 2 . . . Recall Reinforcements 1 | . . . . . . . . . . . . . . . . 1 . . . Registered Components 1 | . . . . . . . . . . . . . . . . 1 . . . Zone Layout 4 | . . . . . . . . . . . 3 . . . . 1 . . . EX-Prototype ID Bank 1 | . . . 1 . . . . . . . . . . . . . . . . Fabricator Hacks 16 | . . . . . . 7 . . . . . . . . . 9 . . . Network Status 1 | . . . . . . . . . . . . . . . . 1 . . . Load Schematic 6 | . . . . . . 2 . . . . . . . . . 4 . . . Build 9 | . . . . . . 5 . . . . . . . . . 4 . . . Repair Station Hacks 3 | . . . . . . . . . . . . . . . . 3 . . . Scan Component 2 | . . . . . . . . . . . . . . . . 2 . . . Repair 1 | . . . . . . . . . . . . . . . . 1 . . . Recycling Unit Hacks . | . . . . . . . . . . . . . . . . . . . . Scanalyzer 2 | . . . . . . 2 . . . . . . . . . . . . . Insert Component 1 | . . . . . . 1 . . . . . . . . . . . . . Analyze 1 | . . . . . . 1 . . . . . . . . . . . . . Garrison Access Hacks 1 | . . . . . . . . . . . 1 . . . . . . . . Seal Access 1 | . . . . . . . . . . . 1 . . . . . . . . Unauthorized Hacks 53 | . 13 . . . 9 6 . . . . 11 . . . . 14 . . . Terminals 14 | . 4 . . . 3 2 . . . . 4 . . . . 1 . . . Track 5 | . 4 . . . . 1 . . . . . . . . . . . . . Botnet 9 | . . . . . 3 1 . . . . 4 . . . . 1 . . . Fabricators 5 | . . . . . . . . . . . . . . . . 5 . . . Report 1 | . . . . . . . . . . . . . . . . 1 . . . Prioritize 2 | . . . . . . . . . . . . . . . . 2 . . . Siphon 2 | . . . . . . . . . . . . . . . . 2 . . . Repair Stations . | . . . . . . . . . . . . . . . . . . . . Recycling Units . | . . . . . . . . . . . . . . . . . . . . Scanalyzers . | . . . . . . . . . . . . . . . . . . . . Garrison Access . | . . . . . . . . . . . . . . . . . . . . Data Cores Recovered 3 | . . . . . . 1 . . . . 1 . . . . 1 . . . Used . | . . . . . . . . . . . . . . . . . . . . Hacking Detections 35 | . 5 . . . 6 8 . . . . 9 . . . . 7 . . . Full Trace Events 2 | . . . . . . 2 . . . . . . . . . . . . . Feedback Events . | . . . . . . . . . . . . . . . . . . . . Feedback Blocked . | . . . . . . . . . . . . . . . . . . . . Robot Schematics Acquired . | . . . . . . . . . . . . . . . . . . . . Robots Built . | . . . . . . . . . . . . . . . . . . . . Matter . | . . . . . . . . . . . . . . . . . . . . Time . | . . . . . . . . . . . . . . . . . . . . Total Robot Build Rating . | . . . . . . . . . . . . . . . . . . . . Part Schematics Acquired 9 | . . . . . 1 1 . . . . . . . 6 . 1 . . . Parts Built 8 | . . . . . . 4 . . . . . . . . . 4 . . . Matter 1727 | . . . . . . 949 . . . . . . . . . 778 . . . Time 665 | . . . . . . 320 . . . . . . . . . 345 . . . Total Part Build Rating 29 | . . . . . . 12 . . . . . . . . . 17 . . . Parts Repaired 1 | . . . . . . . . . . . . . . . . 1 . . . Time 50 | . . . . . . . . . . . . . . . . 50 . . . Parts Recycled . | . . . . . . . . . . . . . . . . . . . . Recycled Matter . | . . . . . . . . . . . . . . . . . . . . Retrieved Matter . | . . . . . . . . . . . . . . . . . . . . Retrieved Components . | . . . . . . . . . . . . . . . . . . . . Parts Scanalyzed 1 | . . . . . . 1 . . . . . . . . . . . . . Part Schematics Acquired 1 | . . . . . . 1 . . . . . . . . . . . . . Parts Damaged . | . . . . . . . . . . . . . . . . . . . . Bothacking | -11 -10 -10 -10 -9 -8 -7 -7 -7 -7 -6 -6 -6 -6 -6 -5 -5 -5 -5 -5 ------------ Run | Scr Mat Min Exi Min Mat Fac Low Low Zio Pro Fac Low Low Dat Pro Fac Upp Upp War Used RIF Installer . | . . . . . . . . . . . . . . . . . . . . Robots Hacked 1 | . . . . . . 1 . . . . . . . . . . . . . Non-combat . | . . . . . . . . . . . . . . . . . . . . Combat 1 | . . . . . . 1 . . . . . . . . . . . . . Robot Hacks Applied 1 | . . . . . . 1 . . . . . . . . . . . . . parse_system 1 | . . . . . . 1 . . . . . . . . . . . . . Relay Couplers Released . | . . . . . . . . . . . . . . . . . . . . Robots Rewired . | . . . . . . . . . . . . . . . . . . . . Allies Hacked . | . . . . . . . . . . . . . . . . . . . . Hacks Repelled . | . . . . . . . . . . . . . . . . . . . . Allies | -11 -10 -10 -10 -9 -8 -7 -7 -7 -7 -6 -6 -6 -6 -6 -5 -5 -5 -5 -5 -------- Run | Scr Mat Min Exi Min Mat Fac Low Low Zio Pro Fac Low Low Dat Pro Fac Upp Upp War Total Allies 3 | . . . . . . . . . 2 . . . . . 1 . . . . Largest Group 2 | . . . . . . . . . 2 2 . . . . 1 . . . . Highest-Rated Group 94 | . . . . . . . . . 45 45 . . . . 94 . . . . Highest-Rated Ally 94 | . . . . . . . . . 31 31 . . . . 94 . . . . Total Orders . | . . . . . . . . . . . . . . . . . . . . Ally Attacks 97 | . . . . . . 13 . . . 11 . . . . 21 . . . 52 Total Damage 4323 | . . . . . . 697 . . . 128 . . . . 739 . . . 2759 Kills 22 | . . . . . . 9 . . . 1 . . . . 4 . . . 8 Allies Corrupted . | . . . . . . . . . . . . . . . . . . . . Allies Melted . | . . . . . . . . . . . . . . . . . . . . Turrets Deployed 3 | . . . . . . 1 . . . . . . . . . . . . 2 Intel | -11 -10 -10 -10 -9 -8 -7 -7 -7 -7 -6 -6 -6 -6 -6 -5 -5 -5 -5 -5 ------- Run | Scr Mat Min Exi Min Mat Fac Low Low Zio Pro Fac Low Low Dat Pro Fac Upp Upp War Robot Analysis Total . | . . . . . . . . . . . . . . . . . . . . Derelict Logs Recovered 12 | . . . . 3 . . 2 2 1 1 . . . . . . 1 2 . Drone Launches . | . . . . . . . . . . . . . . . . . . . . Drone Recoveries . | . . . . . . . . . . . . . . . . . . . . Exploration | -11 -10 -10 -10 -9 -8 -7 -7 -7 -7 -6 -6 -6 -6 -6 -5 -5 -5 -5 -5 ------------- Run | Scr Mat Min Exi Min Mat Fac Low Low Zio Pro Fac Low Low Dat Pro Fac Upp Upp War Turns Passed 9903 | 58 929 482 353 627 2083 1200 109 150 202 391 678 117 94 23 199 1282 167 96 663 Spaces Moved 10631 | 32 455 259 217 381 984 1398 254 451 602 565 997 194 268 80 346 1500 302 308 1038 Core 59 | 5 . . . . . . . . . . . . . . . . . . 54 Treads 1396 | 27 455 259 217 381 57 . . . . . . . . . . . . . . Legs . | . . . . . . . . . . . . . . . . . . . . Wheels 950 | . . . . . 927 23 . . . . . . . . . . . . . Hover 215 | . . . . . . 215 . . . . . . . . . . . . . Flight 8011 | . . . . . . 1160 254 451 602 565 997 194 268 80 346 1500 302 308 984 Fastest Speed 26 | 50 160 160 160 160 100 26 26 26 26 26 26 28 28 28 28 28 29 29 29 Average Speed 54 | 142 160 160 160 160 130 30 26 26 26 26 27 28 28 28 28 28 29 29 30 Slowest Speed 310 | 160 160 160 160 160 200 310 26 26 26 26 98 28 28 28 28 29 29 29 200 Overloaded Moves . | . . . . . . . . . . . . . . . . . . . . Propulsion Burnouts . | . . . . . . . . . . . . . . . . . . . . Robots Hopped 12 | . . . . . . 4 . 1 . . . . . . . 6 . . 1 Cave-ins Triggered . | . . . . . . . . . . . . . . . . . . . . Exploration Rate (%) 53 | 3 81 46 61 79 62 21 46 60 77 61 26 43 38 69 55 40 48 58 95 Regions Visited 19 Branch Regions 14 Pre-discovered Areas 2 | . . . . . . . 1 . . . . . . 1 . . . . . Known Exits Taken 14 | . . . . . 1 1 1 1 1 1 1 1 1 1 1 1 1 1 . Unknown Exits Taken 5 | 1 1 1 1 1 . . . . . . . . . . . . . . . Scrap Searched 20 | . . 1 . 2 . . 2 1 3 3 . 1 1 . 1 . 3 2 . Spaces Dug 92 | . . . . . 9 6 12 . . 6 18 2 4 . . 25 3 1 6 Terrain Destroyed 187 | . . . . . 9 6 22 21 . 27 18 2 24 . 23 25 3 1 6 Melee 92 | . . . . . 9 6 12 . . 6 18 2 4 . . 25 3 1 6 Projectile . | . . . . . . . . . . . . . . . . . . . . AOE 95 | . . . . . . . 10 21 . 21 . . 20 . 23 . . . . Actions | -11 -10 -10 -10 -9 -8 -7 -7 -7 -7 -6 -6 -6 -6 -6 -5 -5 -5 -5 -5 --------- Run | Scr Mat Min Exi Min Mat Fac Low Low Zio Pro Fac Low Low Dat Pro Fac Upp Upp War Total 14245 | 41 574 309 222 394 1652 2122 269 478 646 797 1342 252 277 79 433 2301 375 312 1370 Wait 3012 | . 45 29 . 4 497 633 . 22 40 218 280 57 3 . 75 736 70 4 299 Move 10589 | 31 454 258 216 380 983 1389 253 448 601 564 996 193 267 79 345 1488 301 307 1036 Hop 11 | . . . . . . 4 . 1 . . . . . . . 5 . . 1 Pick Up 66 | 4 9 1 5 2 19 8 . 1 1 2 7 . . . . 6 . . 1 Fast Attach 63 | 6 2 . . 1 12 16 . 1 1 1 6 . . . 1 9 . . 7 Attach 21 | . . . . . 4 7 . 1 . . 3 . . . . 4 . . 2 Detach 4 | . . . . 1 . 1 . . . . . . . . . 2 . . . Swap 43 | . 8 5 1 1 11 8 1 . 1 . . . . . . 5 1 . 1 Drop 109 | . 9 5 . 2 29 27 . 1 2 3 11 . . . . 11 . . 9 Fire 167 | . 47 11 . 3 86 1 1 3 . 3 . . 3 . 9 . . . . Melee 157 | . . . . . 11 28 14 . . 6 39 2 4 . 3 35 3 1 11 Ram 3 | . . . . . . . . . . . . . . . . . . . 3 Kick . | . . . . . . . . . . . . . . . . . . . . Crush . | . . . . . . . . . . . . . . . . . . . . Escape Stasis . | . . . . . . . . . . . . . . . . . . . . Rewire . | . . . . . . . . . . . . . . . . . . . . Trap . | . . . . . . . . . . . . . . . . . . . . Miscellaneous . | . . . . . . . . . . . . . . . . . . . . Route ------- -11/Scrapyard -10/Materials (discovered 3 exits: [*Mat x2] / [*Min]) -10/Mines (discovered 2 exits: [*Mat] / *Exi) -10/Exiles -9/Mines -8/Materials (discovered 3 exits: *Fac x3) -7/Factory -7/Lower Caves -7/Lower Caves -7/Zion -6/Proximity Caves -6/Factory (discovered 3 exits: Fac / *Low x2) -6/Lower Caves -6/Lower Caves -6/Data Miner -5/Proximity Caves -5/Factory (discovered 3 exits: *Fac / *Upp x2) -5/Upper Caves -5/Upper Caves (discovered 2 exits: *Fac / *War) -5/Warlord (discovered 1 exit: [*Pro]) History --------- Turn | Location | Event 19 | -11/Scrapyard | Discovered new exit (range 15) 59 | -11/Scrapyard | Entered Materials 309 | -10/Materials | Build established: Mutant 441 | -10/Materials | Discovered new exit (range 9) 744 | -10/Materials | Discovered new exit (range 11) 968 | -10/Materials | Discovered new exit (range 13) 988 | -10/Materials | Entered Mines 1006 | -10/Mines | Discovered new exit (range 13) 1197 | -10/Mines | Core integrity fell below 50% 1316 | -10/Mines | Assisted by bots powering up and referring to "LRC-V3" 1464 | -10/Mines | Deemed a non-threat by the Exiles lab entrance 1464 | -10/Mines | Discovered new exit (range 5) 1470 | -10/Mines | Entered Exiles 1510 | -10/Exiles | Met 8R-AWN 1536 | -10/Exiles | Met EX-HEX 1579 | -10/Exiles | Met EX-BIN 1602 | -10/Exiles | Aligned with FarCom system 1603 | -10/Exiles | Given EX-Vault access code 1642 | -10/Exiles | Opened EX-Vault 1654 | -10/Exiles | Found Modified TNC 1657 | -10/Exiles | Found Trap Reconfigurator 1663 | -10/Exiles | Found Deploy-a-Sentry 1665 | -10/Exiles | Found Deploy-a-Sentry 1668 | -10/Exiles | Found Deploy-a-Sentry 1701 | -10/Exiles | Warned to stay clear of 0b10 Research branches 1751 | -10/Exiles | Met EX-DEC 1803 | -10/Exiles | Discovered new exit (range 14) 1823 | -10/Exiles | Stole three prototypes: Modified TNC, Trap Reconfigurator, Deploy-a-Sentry 1823 | -10/Exiles | Entered Mines 1824 | -9/Mines | Assembled infested the area 1891 | -9/Mines | Met a Derelict bent on vengeance 2096 | -9/Mines | Learned Materials trap positions 2354 | -9/Mines | Learned Materials trap positions 2438 | -9/Mines | Discovered new exit (range 4) 2450 | -9/Mines | Entered Materials 2450 | -8/Materials | Evolved 4 slots: Propulsion x1, Utility x3 2451 | -8/Materials | Loaded intel: 14 trap records 2518 | -8/Materials | Central database locked down 2657 | -8/Materials | Lost 3 parts (2n1w) 2969 | -8/Materials | Discovered new exit (range 13) 3366 | -8/Materials | Build established: Scavenger-Mutant 3518 | -8/Materials | Identified exit to Factory 3792 | -8/Materials | Build established: Mutant 4533 | -8/Materials | Entered Factory 4533 | -7/Factory | Evolved 2 slots: Power x1, Propulsion x1 4534 | -7/Factory | Identified exit to Lower Caves 4535 | -7/Factory | FarCom data flow suspended 4810 | -7/Factory | Fabricated Hacking Suite (x1) 4972 | -7/Factory | Build established: Hacker-Sprinter 5025 | -7/Factory | Fabricated Imp. VTOL Module? 5134 | -7/Factory | Fabricated Imp. VTOL Module? 5212 | -7/Factory | Fabricated Imp. VTOL Module (x1) 5217 | -7/Factory | DAS Turret deployed 5232 | -7/Factory | Local fabrication network quarantined 5733 | -7/Factory | First assault squad dispatched 5733 | -7/Factory | Entered Lower Caves 5738 | -7/Lower Caves | Spotted B-75 Beast 5800 | -7/Lower Caves | Learned location of Zion (-7) 5835 | -7/Lower Caves | Discovered new exit (range 7) 5836 | -7/Lower Caves | Identified exit to Lower Caves 5838 | -7/Lower Caves | Learned Factory stockpile data 5839 | -7/Lower Caves | Spotted GY-NQ3(f) 5840 | -7/Lower Caves | Encountered a Master Thief 5840 | -7/Lower Caves | Spotted A6-M95(f) 5841 | -7/Lower Caves | Encountered a Master Thief 5842 | -7/Lower Caves | Entered another Lower Caves area 5844 | -7/Lower Caves | Learned Factory terminal intel 5869 | -7/Lower Caves | Learned 8 Research zone layouts 5869 | -7/Lower Caves | Learned Extension stockpile data 5869 | -7/Lower Caves | Learned Factory terminal intel 5890 | -7/Lower Caves | Attracted the attention of an 0b10 outpost 5907 | -7/Lower Caves | Encountered a Warlord checkpoint 5910 | -7/Lower Caves | Learned Factory terminal intel 5990 | -7/Lower Caves | Discovered new exit (range 8) 5991 | -7/Lower Caves | Identified exit to Zion 5992 | -7/Lower Caves | Entered Zion 6018 | -7/Zion | Found Prototype Hackware 6130 | -7/Zion | Identified exit to Proximity Caves 6139 | -7/Zion | Given A8's code to call for help 6148 | -7/Zion | Gained Derelict followers 6194 | -7/Zion | Entered Proximity Caves 6194 | -6/Proximity Caves | Accompanied by 2 allies 6492 | -6/Proximity Caves | Learned 4 Factory zone layouts 6582 | -6/Proximity Caves | Discovered new exit (range 10) 6584 | -6/Proximity Caves | Identified exit to Factory 6585 | -6/Proximity Caves | Entered Factory 6585 | -6/Factory | Evolved 2 slots: Utility x2 6586 | -6/Factory | Identified exit to Factory 6586 | -6/Factory | Identified exit to Lower Caves 6588 | -6/Factory | Loaded intel: 20 terminal locations 6950 | -6/Factory | Identified Exp. Hacking Suite 7254 | -6/Factory | Found Prototype Processor 7254 | -6/Factory | Identified Exp. Targeting Computer 7263 | -6/Factory | Entered Lower Caves 7264 | -6/Lower Caves | Encountered a Warlord checkpoint 7330 | -6/Lower Caves | Discovered new exit (range 15) 7371 | -6/Lower Caves | Attracted the attention of an 0b10 checkpoint 7379 | -6/Lower Caves | Identified exit to Lower Caves 7380 | -6/Lower Caves | Entered another Lower Caves area 7381 | -6/Lower Caves | Encountered a Warlord checkpoint 7407 | -6/Lower Caves | Attracted the attention of an 0b10 checkpoint 7437 | -6/Lower Caves | Spotted B2-Z86(f) 7442 | -6/Lower Caves | Encountered a Master Thief 7465 | -6/Lower Caves | Discovered new exit (range 16) 7469 | -6/Lower Caves | Identified exit to Data Miner 7474 | -6/Lower Caves | Entered Data Miner 7474 | -6/Data Miner | Discovered new exit (range 6) 7480 | -6/Data Miner | Met Data Miner 7485 | -6/Data Miner | Learned location of Section 7 (-2) 7485 | -6/Data Miner | Acquired the access code to Warlord's prototype stash 7490 | -6/Data Miner | Received God Mode back door access code from Data Miner 7496 | -6/Data Miner | Identified exit to Proximity Caves 7497 | -6/Data Miner | Entered Proximity Caves 7512 | -5/Proximity Caves | Escorted by Enhanced Grunt 7517 | -5/Proximity Caves | Attracted the attention of an 0b10 checkpoint 7663 | -5/Proximity Caves | Spotted LD-GY7(f) 7664 | -5/Proximity Caves | Encountered a Master Thief 7693 | -5/Proximity Caves | Discovered exit to Factory (range 15) 7696 | -5/Proximity Caves | Entered Factory 7696 | -5/Factory | Evolved 2 slots: Utility x2 7697 | -5/Factory | Loaded intel: 18 terminal locations 7994 | -5/Factory | Build established: Hacker-Scout 8001 | -5/Factory | Central database locked down 8101 | -5/Factory | Repaired Lgt. Fission Core 8220 | -5/Factory | Fabricated Exp. Signal Interpreter? 8268 | -5/Factory | Fabricated Hacking Suite (x1) 8356 | -5/Factory | Fabricated Plasma Sword? 8459 | -5/Factory | Identified exit to Upper Caves 8539 | -5/Factory | Discovered new exit (range 6) 8542 | -5/Factory | Identified exit to Factory 8756 | -5/Factory | Fabricated Hacking Suite? 8978 | -5/Factory | Entered Upper Caves 9131 | -5/Upper Caves | Learned Factory stockpile data 9140 | -5/Upper Caves | Discovered new exit (range 11) 9144 | -5/Upper Caves | Identified exit to Upper Caves 9145 | -5/Upper Caves | Entered another Upper Caves area 9156 | -5/Upper Caves | Discovered exit to Factory (range 12) 9167 | -5/Upper Caves | Learned Factory stockpile data 9231 | -5/Upper Caves | Learned Factory terminal intel 9237 | -5/Upper Caves | Discovered new exit (range 15) 9241 | -5/Upper Caves | Identified exit to Warlord 9241 | -5/Upper Caves | Entered Warlord 9251 | -5/Warlord | System corruption cleaned by Quarantine Array 9315 | -5/Warlord | Met Warlord 9318 | -5/Warlord | Opened Warlord's prototype stash 9320 | -5/Warlord | Found Prototype Device 9320 | -5/Warlord | Identified Exp. Phase Shifter 9329 | -5/Warlord | Found Prototype Device 9329 | -5/Warlord | Identified Exp. Focal Shield 9331 | -5/Warlord | Found Prototype Processor 9331 | -5/Warlord | Identified Exp. Target Analyzer 9340 | -5/Warlord | Warlord's base attacked by MAIN.C 9512 | -5/Warlord | Opened side exit 9561 | -5/Warlord | Spotted B-86 Titan 9690 | -5/Warlord | Warlord forces counterattacked 9763 | -5/Warlord | Spotted Striker 9765 | -5/Warlord | DAS Turret deployed 9768 | -5/Warlord | DAS Turret deployed 9779 | -5/Warlord | Spotted Executioner 9839 | -5/Warlord | Spotted Executioner 9858 | -5/Warlord | Discovered new exit (range 14) 9858 | -5/Warlord | Spotted Striker 9858 | -5/Warlord | Spotted Executioner 9860 | -5/Warlord | Allies destroyed B-86 Titan 9885 | -5/Warlord | Core integrity fell below 50% 9893 | -5/Warlord | Core integrity fell below 20% 9904 | -5/Warlord | Destroyed by Executioner with Helical Railgun Last Messages --------------- 09877_ Cesium-ion Thruster fries itself beyond repair. 09879_ System corrupted: Heat flow error (+223). 09880_ Penetrated by Slug. 09880_ Slug penetrates Wall. 09886_ Slug penetrates Striker. 09886_ Slug penetrates Wall. 09892_ The unstable cave ceiling collapses. 09892_ Penetrated by Slug. 09892_ Slug penetrates Earth. 09893_ G-50 Soldier destroyed. 09894_ Penetrated by Slug. 09894_ Slug penetrates Earth. 09894_ Penetrated by Slug. 09895_ Destroyed Plasma Rifle. 09897_ G-67 Veteran destroyed. 09899_ Slug penetrates Wall. 09902_ Adv. Heat Sink fries itself beyond repair. 09903_ Destroyed Adv. Heat Sink. 09904_ Flexi-carbon Leg fries itself beyond repair. 09904_ Penetrated by Slug. Map ----- +----------------------------------------------------+ | ?## ##???????????????????????????????##???? | | [ ! # #??????????????????####?????????# ???? | | [ ! # #?????????????????## ###???????#"###? | | [ ! + #????????????????## !*=/#??????## ## | | # #????????????????# **=!#??????## | | # #????????????????# =/%##?????## < | | ?## ##????????????????# / !=#?????# | | ??# #?????????????????# %%% ##????# | | ####???# #?????????????????##!=!=%#????# # | | ???# ??# #??????????????????### %/##???## # | | #### ### #????????????????????## % #????## ## | | ##????????????????????#"% #???### ##? | | #????????????????????#"% ##### % "## | | ##????????????????????## * # | | ######## #????###??????????????## ### ##" | | ??? #??# ##????#""???????????????## ###"% | | "" #??# #?????#""????????????????##" "## | | "" #??# #?????#""#???????????????##" ## | | """ #?## #?????#""#???????######### "" | | """ #?#"! #?#####""######### # ##### # | | "" ####% ### # ;"" ## # # ##### # | | "" ; ! "" ## # # # % | | # ""t t # # # | | """;; % !"" =!! *= # %#" # | | ! %[%%%=%%]!] !K = %# %=!"%" | | %!% %%=*[!]%%%@%== % %%!%%*% %= | | [[!%*% %% %% [! !==%%!=% *%*! [!%% " | | [% !%%%*%%=% %% ## | | # % "" %!! [ % ## | | # # "" """""""" " # ### | | # ; "" "#####;;;# ##### ## | | #### #######""#####???########???# ### | | #?????#""#?????????????????# ## | | "" #?????#""#????????????????# ### | | "" #?????#""#???????????????## ### % | | "" #???????"????????????????# #?## | | ### ##????????????????????????# ???## | | #?# #????????????????????????## #???# # # | | #?# #????????????????????????#" #???# # # | | #?# #????????????????????????## ##??# ## | | #?# #???????????????????????## ##?### | | ##?# #???????????????????????# ##?# | | #?##+#####???????????????#####% "# ### | | #?# #??????????????## # "### ## | | #?# #??????????????# #### ## | | #?# #??????????????# #"#" ## # | | #?# #??????????????# ## # ## # | | ### #??????????????###### ###### % "" | | ## #??????????????????# ##????####### | | ### #??????????????????# ##???????????? | +----------------------------------------------------+ Best States ------------- Heat Dissipation 56 Energy Generation 32 Energy Capacity 250 Matter Stores 300 Matter Capacity 300 Sight Range 16 Robot Scan Range 33 Terrain Scan Density 10 Armor Coverage 225 Resistance: KI 30 Core Shielding 20 Weapon Shielding 66 Evasion (%) 64 Recoil Reduction 2 Offensive Hacking 36 Defensive Hacking 22 Item Schematics ----------------- Hacking Suite | -8/Materials | Hacked Imp. VTOL Module | -7/Factory | Scanalyzed Combat Drone Bay | -6/Data Miner | Free Lgt. Regenerative Plating | -6/Data Miner | Free Cmb. Gravmag System | -6/Data Miner | Free Triangulator | -6/Data Miner | Free Exp. ECM Suite | -6/Data Miner | Free Plasma Sword | -6/Data Miner | Free Exp. Signal Interpreter | -5/Factory | Hacked Robot Schematics ------------------ None Fabricated ------------ Hacking Suite | x1 | -7/Factory Imp. VTOL Module | x1 | -7/Factory Imp. VTOL Module | x1 | -7/Factory Imp. VTOL Module | x1 | -7/Factory Exp. Signal Interpreter | x1 | -5/Factory Hacking Suite | x1 | -5/Factory Plasma Sword | x1 | -5/Factory Hacking Suite | x1 | -5/Factory Alien Tech Used ----------------- None Achievements -------------- None Challenges ------------ None Game ------ Seed ColdCloakDevice Manual? 0 Play Time 01:32:01 Cumulative 737.4 hours Start 2020.02.15 @ 15:54:53 End 2020.02.16 @ 20:55:32 Sessions 7 Manual Loads 0 Difficulty Rogue Special Mode None Game No. 652 Rogue 612 Adventurer 40 Explorer 0 Win Type - Total 65 Types 46/2/14/2/0/0/1 Lore% 92 Gallery% 94 Achievement% 74 Wizard Run 0 Options --------- ASCII 0 Keyboard 0 Movement Numpad Keybinds 0 Fullscreen 0 Font 16/Terminus Map View 76x50 Tactical HUD 1 Map Filters NONE Filters NONE Steam 1 RUN: 1058d590-3bc3-4ddb-8eee-76972e2bd6e9